[Event "*** Titled Tuesday 3|2 Blitz"]
[Site "Chess.com"]
[Date "2016.07.05"]
[Round "4"]
[White "ZapataCharlesS"]
[Black "wonderfultime"]
[Result "0-1"]
[WhiteElo "2472"]
[BlackElo "2663"]
[TimeControl "180+2"]
[EndTime "17:50:07 PDT"]
[Termination "wonderfultime won on time"]

1. e4 {[%clk 0:02:59.6]} 1... c5 {[%clk 0:02:58.1]} 2. c3 {[%clk 0:03:00]} 2...
Nf6 {[%clk 0:02:58.1]} 3. e5 {[%clk 0:03:01]} 3... Nd5 {[%clk 0:02:59.2]} 4. g3
{[%clk 0:03:01.2]} 4... e6 {[%clk 0:02:57.7]} 5. Bg2 {[%clk 0:03:01.5]} 5... d6
{[%clk 0:02:58]} 6. exd6 {[%clk 0:03:00.6]} 6... Bxd6 {[%clk 0:02:58.6]} 7. Ne2
{[%clk 0:03:01.1]} 7... O-O {[%clk 0:02:59.4]} 8. Na3 {[%clk 0:02:57.6]} 8...
Nc6 {[%clk 0:03:00.1]} 9. O-O {[%clk 0:02:53.1]} 9... Rb8 {[%clk 0:02:38.3]} 10.
Nb5 {[%clk 0:02:46.1]} 10... Be7 {[%clk 0:02:36.1]} 11. d4 {[%clk 0:02:47.7]}
11... a6 {[%clk 0:02:36.6]} 12. Na3 {[%clk 0:02:46.5]} 12... b5 {[%clk
0:02:09.9]} 13. Nc2 {[%clk 0:02:40.2]} 13... Bb7 {[%clk 0:01:59.9]} 14. Nf4
{[%clk 0:02:34.9]} 14... Nf6 {[%clk 0:01:58.2]} 15. Be3 {[%clk 0:02:10.4]} 15...
e5 {[%clk 0:01:27.8]} 16. Bxc6 {[%clk 0:00:56.4]} 16... Bxc6 {[%clk 0:01:24.3]}
17. dxe5 {[%clk 0:00:56.9]} 17... Nd5 {[%clk 0:01:25.1]} 18. Nxd5 {[%clk
0:00:52]} 18... Bxd5 {[%clk 0:01:27]} 19. f4 {[%clk 0:00:52.9]} 19... Qd7 {[%clk
0:01:18.1]} 20. Qe2 {[%clk 0:00:52.7]} 20... Rfd8 {[%clk 0:01:04.2]} 21. Rad1
{[%clk 0:00:45.1]} 21... Qf5 {[%clk 0:01:05.1]} 22. Bc1 {[%clk 0:00:35.1]} 22...
Bc4 {[%clk 0:01:03.4]} 23. Ne3 {[%clk 0:00:35.5]} 23... Bxe2 {[%clk 0:00:55.9]}
24. Nxf5 {[%clk 0:00:33.3]} 24... Bxf1 {[%clk 0:00:41.8]} 25. Rxf1 {[%clk
0:00:35]} 25... Bf8 {[%clk 0:00:41.3]} 26. Be3 {[%clk 0:00:36.1]} 26... Rd3
{[%clk 0:00:42.3]} 27. Kf2 {[%clk 0:00:33.2]} 27... g6 {[%clk 0:00:43]} 28. Ke2
{[%clk 0:00:29.9]} 28... c4 {[%clk 0:00:42.6]} 29. Nd4 {[%clk 0:00:30.7]} 29...
Bc5 {[%clk 0:00:37.8]} 30. a3 {[%clk 0:00:29.9]} 30... a5 {[%clk 0:00:34.8]} 31.
Rd1 {[%clk 0:00:28.3]} 31... Rxd1 {[%clk 0:00:32.5]} 32. Kxd1 {[%clk 0:00:30.2]}
32... Bxd4 {[%clk 0:00:34.1]} 33. Bxd4 {[%clk 0:00:22.4]} 33... b4 {[%clk
0:00:35.1]} 34. a4 {[%clk 0:00:16]} 34... Kf8 {[%clk 0:00:31.5]} 35. Ke2 {[%clk
0:00:16.8]} 35... Ke7 {[%clk 0:00:32.8]} 36. Ke3 {[%clk 0:00:18.4]} 36... Ke6
{[%clk 0:00:31.2]} 37. Ke4 {[%clk 0:00:18.8]} 37... h5 {[%clk 0:00:32.3]} 38. h3
{[%clk 0:00:17.3]} 38... Rd8 {[%clk 0:00:23.8]} 39. g4 {[%clk 0:00:18]} 39...
hxg4 {[%clk 0:00:21.4]} 40. hxg4 {[%clk 0:00:19.9]} 40... bxc3 {[%clk
0:00:09.8]} 0-1

[Event "*** Titled Tuesday 3|2 Blitz"]
[Site "Chess.com"]
[Date "2016.07.05"]
[Round "4"]
[White "Hikaru"]
[Black "GeorgMeier"]
[Result "1-0"]
[WhiteElo "3004"]
[BlackElo "2653"]
[TimeControl "180+2"]
[EndTime "17:50:11 PDT"]
[Termination "Hikaru won by resignation"]

1. d4 {[%clk 0:03:01.9]} 1... Nf6 {[%clk 0:03:00.8]} 2. Bf4 {[%clk 0:02:56]}
2... e6 {[%clk 0:03:00]} 3. e3 {[%clk 0:02:57]} 3... Be7 {[%clk 0:03:01.3]} 4.
c4 {[%clk 0:02:56.8]} 4... d5 {[%clk 0:03:01.2]} 5. Nc3 {[%clk 0:02:58.1]} 5...
O-O {[%clk 0:03:02.1]} 6. a3 {[%clk 0:02:59.2]} 6... Nbd7 {[%clk 0:02:58.1]} 7.
c5 {[%clk 0:02:56.4]} 7... c6 {[%clk 0:02:56.9]} 8. Bd3 {[%clk 0:02:54.4]} 8...
b6 {[%clk 0:02:57.7]} 9. b4 {[%clk 0:02:55.5]} 9... a5 {[%clk 0:02:58.8]} 10.
Nf3 {[%clk 0:02:37.9]} 10... Ba6 {[%clk 0:02:57.5]} 11. O-O {[%clk 0:02:32.6]}
11... Qc8 {[%clk 0:02:50.8]} 12. h3 {[%clk 0:02:32.2]} 12... Qb7 {[%clk
0:02:41.2]} 13. Qe2 {[%clk 0:02:31.8]} 13... Bxd3 {[%clk 0:02:41.6]} 14. Qxd3
{[%clk 0:02:33.7]} 14... Ra7 {[%clk 0:02:40.4]} 15. Rab1 {[%clk 0:02:29.2]}
15... axb4 {[%clk 0:02:40.6]} 16. axb4 {[%clk 0:02:30]} 16... Rfa8 {[%clk
0:02:42.1]} 17. Rfc1 {[%clk 0:02:27.4]} 17... Bd8 {[%clk 0:02:37]} 18. Qc2
{[%clk 0:02:10.1]} 18... Bc7 {[%clk 0:02:16.5]} 19. Bxc7 {[%clk 0:02:10]} 19...
Qxc7 {[%clk 0:02:17.6]} 20. b5 {[%clk 0:02:11.9]} 20... Ra5 {[%clk 0:02:03.9]}
21. bxc6 {[%clk 0:02:00.5]} 21... Qxc6 {[%clk 0:02:00.3]} 22. cxb6 {[%clk
0:02:01.5]} 22... Nxb6 {[%clk 0:01:52.9]} 23. Nxd5 {[%clk 0:01:43]} 23... Qxc2
{[%clk 0:01:26.5]} 24. Nxf6+ {[%clk 0:01:43.8]} 24... gxf6 {[%clk 0:01:28]} 25.
Rxc2 {[%clk 0:01:45.7]} 25... Nd5 {[%clk 0:01:25.6]} 26. g4 {[%clk 0:01:46.4]}
26... Kg7 {[%clk 0:01:26.6]} 27. Kg2 {[%clk 0:01:47.5]} 27... Ra1 {[%clk
0:01:14.1]} 28. Rxa1 {[%clk 0:01:48.2]} 28... Rxa1 {[%clk 0:01:15.7]} 29. Rb2
{[%clk 0:01:49.8]} 29... Rc1 {[%clk 0:01:15.5]} 30. Nd2 {[%clk 0:01:47]} 30...
Rc7 {[%clk 0:01:02.3]} 31. Ne4 {[%clk 0:01:45.7]} 31... Kg6 {[%clk 0:01:03.8]}
32. Rb8 {[%clk 0:01:45.4]} 32... Kg7 {[%clk 0:01:03.4]} 33. Ng3 {[%clk
0:01:45.4]} 33... Ne7 {[%clk 0:00:49.7]} 34. Nh5+ {[%clk 0:01:43.7]} 34... Kg6
{[%clk 0:00:51.2]} 35. Nf4+ {[%clk 0:01:43.9]} 35... Kg7 {[%clk 0:00:52.2]} 36.
Re8 {[%clk 0:01:42.5]} 36... Ra7 {[%clk 0:00:52]} 37. Kg3 {[%clk 0:01:43.2]}
37... h6 {[%clk 0:00:47.1]} 38. f3 {[%clk 0:01:36.8]} 38... f5 {[%clk
0:00:48.2]} 39. Nh5+ {[%clk 0:01:36.7]} 39... Kg6 {[%clk 0:00:48.9]} 40. Nf4+
{[%clk 0:01:37.3]} 40... Kg7 {[%clk 0:00:50]} 41. e4 {[%clk 0:01:30.8]} 41...
fxe4 {[%clk 0:00:50.2]} 42. fxe4 {[%clk 0:01:32.7]} 42... Rd7 {[%clk 0:00:49.6]}
43. Kf2 {[%clk 0:01:28]} 43... Ra7 {[%clk 0:00:40]} 44. h4 {[%clk 0:01:20.1]}
44... Rb7 {[%clk 0:00:20.5]} 45. Ke3 {[%clk 0:01:19.4]} 45... Kf6 {[%clk
0:00:20.3]} 46. e5+ {[%clk 0:01:18]} 46... Kg7 {[%clk 0:00:21.3]} 47. Ke4 {[%clk
0:01:19.4]} 47... Ra7 {[%clk 0:00:22.2]} 48. Nh5+ {[%clk 0:01:19.9]} 48... Kg6
{[%clk 0:00:23]} 49. Nf6 {[%clk 0:01:20.9]} 49... Kg7 {[%clk 0:00:22.3]} 50. h5
{[%clk 0:01:18.3]} 50... Rb7 {[%clk 0:00:23]} 51. Kd3 {[%clk 0:01:19.2]} 51...
Ra7 {[%clk 0:00:24.1]} 52. Kc4 {[%clk 0:01:20.4]} 52... Rc7+ {[%clk 0:00:22.6]}
53. Kb5 {[%clk 0:01:21.3]} 1-0

[Event "*** Titled Tuesday 3|2 Blitz"]
[Site "Chess.com"]
[Date "2016.07.05"]
[Round "4"]
[White "Alliswell998"]
[Black "pedromartinez91"]
[Result "0-1"]
[WhiteElo "2168"]
[BlackElo "2317"]
[TimeControl "180+2"]
[EndTime "17:53:34 PDT"]
[Termination "pedromartinez91 won by checkmate"]

1. e4 {[%clk 0:02:56]} 1... c5 {[%clk 0:02:59.8]} 2. Nf3 {[%clk 0:02:56.3]} 2...
Nc6 {[%clk 0:03:00]} 3. d4 {[%clk 0:02:57.7]} 3... cxd4 {[%clk 0:03:00.2]} 4.
Nxd4 {[%clk 0:02:59.6]} 4... g6 {[%clk 0:03:00.6]} 5. Nc3 {[%clk 0:03:00.5]}
5... Bg7 {[%clk 0:03:00.7]} 6. Be3 {[%clk 0:03:01.8]} 6... Nf6 {[%clk
0:03:00.9]} 7. f3 {[%clk 0:03:02.1]} 7... O-O {[%clk 0:02:53.9]} 8. Bc4 {[%clk
0:02:49.9]} 8... Qb6 {[%clk 0:02:52.2]} 9. Bb3 {[%clk 0:02:45.8]} 9... Ng4
{[%clk 0:02:51.7]} 10. Nd5 {[%clk 0:02:34.1]} 10... Nxe3 {[%clk 0:02:46.3]} 11.
Nxb6 {[%clk 0:02:34.3]} 11... Bxd4 {[%clk 0:02:07.2]} 12. Nxa8 {[%clk 0:02:16]}
12... Nxd1 {[%clk 0:02:06.2]} 13. Rxd1 {[%clk 0:02:16.4]} 13... Be5 {[%clk
0:02:05]} 14. O-O {[%clk 0:02:02.2]} 14... Bb8 {[%clk 0:02:02.8]} 15. f4 {[%clk
0:01:31.6]} 15... b6 {[%clk 0:01:57.9]} 16. e5 {[%clk 0:01:27]} 16... Bb7 {[%clk
0:01:41.2]} 17. Rxd7 {[%clk 0:01:25.9]} 17... Bxa8 {[%clk 0:01:40.7]} 18. Rfd1
{[%clk 0:01:15]} 18... a6 {[%clk 0:01:31.9]} 19. c3 {[%clk 0:01:07.4]} 19... g5
{[%clk 0:01:21.3]} 20. g3 {[%clk 0:01:03.8]} 20... e6 {[%clk 0:01:20.3]} 21. Kf2
{[%clk 0:00:53.7]} 21... b5 {[%clk 0:01:20.5]} 22. a4 {[%clk 0:00:50.1]} 22...
Na5 {[%clk 0:01:20.2]} 23. Bc2 {[%clk 0:00:47.6]} 23... Bd5 {[%clk 0:01:19.2]}
24. axb5 {[%clk 0:00:45.9]} 24... axb5 {[%clk 0:01:19.7]} 25. Ra1 {[%clk
0:00:36.1]} 25... Nc4 {[%clk 0:01:03.8]} 26. b3 {[%clk 0:00:29.5]} 26... Nb6
{[%clk 0:01:03.8]} 27. Re7 {[%clk 0:00:30.9]} 27... Rc8 {[%clk 0:01:02.3]} 28.
Bd3 {[%clk 0:00:29.6]} 28... Rxc3 {[%clk 0:01:00.6]} 29. Re8+ {[%clk 0:00:30.7]}
29... Kg7 {[%clk 0:01:01.1]} 30. Rxb8 {[%clk 0:00:31.9]} 30... Rxd3 {[%clk
0:00:59.1]} 31. Rxb6 {[%clk 0:00:32.2]} 31... Rxb3 {[%clk 0:00:59.4]} 32. fxg5
{[%clk 0:00:31]} 32... Kg6 {[%clk 0:00:58.5]} 33. Ra7 {[%clk 0:00:29.6]} 33...
Rf3+ {[%clk 0:00:54.5]} 34. Ke2 {[%clk 0:00:29.7]} 34... Rf5 {[%clk 0:00:51.3]}
35. Kd2 {[%clk 0:00:27.3]} 35... Bc4 {[%clk 0:00:50.2]} 36. Rbb7 {[%clk
0:00:24]} 36... Rf2+ {[%clk 0:00:46.2]} 37. Kc3 {[%clk 0:00:24.2]} 37... Rxh2
{[%clk 0:00:42.9]} 38. Rxf7 {[%clk 0:00:24.6]} 38... Kxg5 {[%clk 0:00:43.6]} 39.
Rxh7 {[%clk 0:00:23.7]} 39... Rxh7 {[%clk 0:00:41.8]} 40. Rxh7 {[%clk
0:00:25.6]} 40... Kf5 {[%clk 0:00:43.3]} 41. Kd4 {[%clk 0:00:20.3]} 41... Be2
{[%clk 0:00:40.1]} 42. Rh4 {[%clk 0:00:19.9]} 42... Bg4 {[%clk 0:00:33]} 43. Kc5
{[%clk 0:00:18.3]} 43... Be2 {[%clk 0:00:30.1]} 44. Kd6 {[%clk 0:00:17.1]} 44...
Bc4 {[%clk 0:00:31.5]} 45. Rf4+ {[%clk 0:00:17.8]} 45... Kg5 {[%clk 0:00:32.4]}
46. Ke7 {[%clk 0:00:16.9]} 46... Kg6 {[%clk 0:00:33.3]} 47. Kd6 {[%clk
0:00:15.9]} 47... Kg5 {[%clk 0:00:34.4]} 48. Kc5 {[%clk 0:00:17]} 48... Bd3
{[%clk 0:00:32.9]} 49. Rf6 {[%clk 0:00:15.2]} 49... Bc4 {[%clk 0:00:33.9]} 50.
Kb4 {[%clk 0:00:12.5]} 50... Kg4 {[%clk 0:00:35]} 51. Kc5 {[%clk 0:00:08.5]}
51... Kxg3 {[%clk 0:00:34.9]} 52. Kd6 {[%clk 0:00:09]} 52... Kg4 {[%clk
0:00:35.2]} 53. Rf2 {[%clk 0:00:09.1]} 53... b4 {[%clk 0:00:32.1]} 54. Rc2
{[%clk 0:00:09.9]} 54... Bd5 {[%clk 0:00:32.3]} 55. Rd2 {[%clk 0:00:10.9]} 55...
b3 {[%clk 0:00:32.8]} 56. Rb2 {[%clk 0:00:09.4]} 56... Kf4 {[%clk 0:00:33.9]}
57. Re2 {[%clk 0:00:04]} 57... Kf3 {[%clk 0:00:34.6]} 58. Rb2 {[%clk 0:00:05]}
58... Ke4 {[%clk 0:00:35.7]} 59. Kc5 {[%clk 0:00:06.5]} 59... Kxe5 {[%clk
0:00:34.7]} 60. Re2+ {[%clk 0:00:08.1]} 60... Kf4 {[%clk 0:00:34.6]} 61. Kb4
{[%clk 0:00:09.2]} 61... Kf3 {[%clk 0:00:35.8]} 62. Re5 {[%clk 0:00:09.7]} 62...
Kf4 {[%clk 0:00:36.1]} 63. Re1 {[%clk 0:00:10.8]} 63... e5 {[%clk 0:00:37.2]}
64. Kc5 {[%clk 0:00:11.8]} 64... Bg8 {[%clk 0:00:37]} 65. Kb4 {[%clk 0:00:11.5]}
65... e4 {[%clk 0:00:37.6]} 66. Kc3 {[%clk 0:00:12.9]} 66... Kf3 {[%clk
0:00:35.7]} 67. Kd2 {[%clk 0:00:13.6]} 67... Bc4 {[%clk 0:00:33.5]} 68. Re3+
{[%clk 0:00:14.1]} 68... Kf4 {[%clk 0:00:33.4]} 69. Rc3 {[%clk 0:00:12.2]} 69...
Bd5 {[%clk 0:00:30.8]} 70. Ke1 {[%clk 0:00:13.1]} 70... e3 {[%clk 0:00:29.4]}
71. Rc1 {[%clk 0:00:11.6]} 71... Be4 {[%clk 0:00:21.5]} 72. Ke2 {[%clk
0:00:08.6]} 72... Bf3+ {[%clk 0:00:21]} 73. Ke1 {[%clk 0:00:09.2]} 73... Ke5
{[%clk 0:00:20]} 74. Rb1 {[%clk 0:00:09.9]} 74... Bd5 {[%clk 0:00:19.6]} 75. Ke2
{[%clk 0:00:11.5]} 75... Kd4 {[%clk 0:00:21]} 76. Rd1+ {[%clk 0:00:11.9]} 76...
Ke4 {[%clk 0:00:22.3]} 77. Rb1 {[%clk 0:00:11.7]} 77... Bc4+ {[%clk 0:00:23.2]}
78. Ke1 {[%clk 0:00:12.7]} 78... Kd3 {[%clk 0:00:24.3]} 79. Rb2 {[%clk
0:00:13.9]} 79... Kc3 {[%clk 0:00:24.5]} 80. Rc2+ {[%clk 0:00:13.5]} 80... Kb4
{[%clk 0:00:22.8]} 81. Rb2 {[%clk 0:00:14.9]} 81... Ka3 {[%clk 0:00:19.5]} 82.
Rb1 {[%clk 0:00:12]} 82... b2 {[%clk 0:00:18.7]} 83. Kd1 {[%clk 0:00:09.9]}
83... Ka2 {[%clk 0:00:19.4]} 84. Rc1 {[%clk 0:00:05]} 84... e2+ {[%clk
0:00:18.5]} 85. Kd2 {[%clk 0:00:04.9]} 85... bxc1=Q+ {[%clk 0:00:18.7]} 86. Kxc1
{[%clk 0:00:06.5]} 86... e1=Q+ {[%clk 0:00:19.3]} 87. Kc2 {[%clk 0:00:08.4]}
87... Qe2+ {[%clk 0:00:18.2]} 88. Kc1 {[%clk 0:00:07.7]} 88... Qb2+ {[%clk
0:00:13]} 89. Kd1 {[%clk 0:00:08.5]} 89... Bb3+ {[%clk 0:00:13.9]} 90. Ke1
{[%clk 0:00:09.9]} 90... Ka3 {[%clk 0:00:15.1]} 91. Kf1 {[%clk 0:00:11.3]} 91...
Kb4 {[%clk 0:00:16.7]} 92. Kg1 {[%clk 0:00:12.8]} 92... Kc4 {[%clk 0:00:18.3]}
93. Kh1 {[%clk 0:00:14.7]} 93... Kd4 {[%clk 0:00:19.9]} 94. Kg1 {[%clk
0:00:16.6]} 94... Ke3 {[%clk 0:00:21.5]} 95. Kh1 {[%clk 0:00:18.5]} 95... Kf3
{[%clk 0:00:23.1]} 96. Kg1 {[%clk 0:00:20]} 96... Qg2# {[%clk 0:00:24]} 0-1

[Event "*** Titled Tuesday 3|2 Blitz"]
[Site "Chess.com"]
[Date "2016.07.05"]
[Round "5"]
[White "akinov-akinseye"]
[Black "Alliswell998"]
[Result "0-1"]
[WhiteElo "1901"]
[BlackElo "2171"]
[TimeControl "180+2"]
[EndTime "17:56:31 PDT"]
[Termination "Alliswell998 won by checkmate"]

1. e4 {[%clk 0:03:01.9]} 1... c5 {[%clk 0:03:00.6]} 2. Nf3 {[%clk 0:03:02.2]}
2... d6 {[%clk 0:03:01.7]} 3. d4 {[%clk 0:03:03.1]} 3... cxd4 {[%clk 0:03:03.6]}
4. Nxd4 {[%clk 0:03:04.5]} 4... Nf6 {[%clk 0:03:05]} 5. Nc3 {[%clk 0:03:05.5]}
5... a6 {[%clk 0:03:06.4]} 6. f3 {[%clk 0:03:06.8]} 6... e5 {[%clk 0:03:07.5]}
7. Be3 {[%clk 0:03:08.5]} 7... exd4 {[%clk 0:03:08.4]} 8. Qxd4 {[%clk
0:03:08.7]} 8... Nc6 {[%clk 0:03:08]} 9. Qd2 {[%clk 0:03:09]} 9... Be7 {[%clk
0:03:09.1]} 10. O-O-O {[%clk 0:03:09.8]} 10... Be6 {[%clk 0:03:09.6]} 11. Kb1
{[%clk 0:03:11]} 11... O-O {[%clk 0:03:10.1]} 12. g4 {[%clk 0:03:12.5]} 12... b5
{[%clk 0:03:09.1]} 13. h4 {[%clk 0:03:13.6]} 13... b4 {[%clk 0:03:09.7]} 14. Nd5
{[%clk 0:03:14.4]} 14... Bxd5 {[%clk 0:03:10.5]} 15. exd5 {[%clk 0:03:15.6]}
15... Ne5 {[%clk 0:03:11.7]} 16. Bg2 {[%clk 0:03:15.3]} 16... Nc4 {[%clk
0:03:11.6]} 17. Qd4 {[%clk 0:03:16.4]} 17... Nxe3 {[%clk 0:03:12.1]} 18. Qxe3
{[%clk 0:03:18.1]} 18... Re8 {[%clk 0:03:13]} 19. g5 {[%clk 0:03:18.9]} 19...
Bf8 {[%clk 0:03:12.4]} 20. Qd3 {[%clk 0:03:09.4]} 20... Nh5 {[%clk 0:03:11.1]}
21. Bh3 {[%clk 0:03:08.1]} 21... Nf4 {[%clk 0:03:11.1]} 22. Qd4 {[%clk
0:03:07.8]} 22... Nxh3 {[%clk 0:03:11.6]} 23. Rxh3 {[%clk 0:03:08.4]} 23... Qc8
{[%clk 0:03:11]} 24. Rg3 {[%clk 0:03:07.6]} 24... Qc5 {[%clk 0:03:09.6]} 25. Qd3
{[%clk 0:03:06.7]} 25... Qe3 {[%clk 0:03:08]} 26. Qf1 {[%clk 0:03:04.1]} 26...
Rac8 {[%clk 0:03:05.8]} 27. Rc1 {[%clk 0:03:03.4]} 27... Qe2 {[%clk 0:03:03.4]}
28. Qg1 {[%clk 0:03:03.2]} 28... g6 {[%clk 0:03:02.3]} 29. h5 {[%clk 0:03:01.4]}
29... Bg7 {[%clk 0:03:02.9]} 30. hxg6 {[%clk 0:03:01.1]} 30... hxg6 {[%clk
0:03:02.6]} 31. Rg2 {[%clk 0:03:02.2]} 31... Qe5 {[%clk 0:03:02.6]} 32. Rh2
{[%clk 0:03:00.7]} 32... Qxb2# {[%clk 0:03:02.4]} 0-1

[Event "*** Titled Tuesday 3|2 Blitz"]
[Site "Chess.com"]
[Date "2016.07.05"]
[Round "5"]
[White "IamSchrodingersCat"]
[Black "Newlight1"]
[Result "0-1"]
[WhiteElo "2232"]
[BlackElo "2289"]
[TimeControl "180+2"]
[EndTime "17:59:12 PDT"]
[Termination "Newlight1 won by resignation"]

1. e4 {[%clk 0:03:01.9]} 1... c5 {[%clk 0:02:58.4]} 2. Nf3 {[%clk 0:03:01.9]}
2... d6 {[%clk 0:02:58.7]} 3. d4 {[%clk 0:03:03.3]} 3... cxd4 {[%clk 0:03:00.6]}
4. Nxd4 {[%clk 0:03:05]} 4... Nf6 {[%clk 0:03:02.2]} 5. Nc3 {[%clk 0:03:06.3]}
5... a6 {[%clk 0:03:03.9]} 6. Be2 {[%clk 0:03:07.2]} 6... e5 {[%clk 0:03:04.7]}
7. Nb3 {[%clk 0:03:08.1]} 7... Be7 {[%clk 0:03:06]} 8. g4 {[%clk 0:03:09.1]}
8... h6 {[%clk 0:03:04.8]} 9. Be3 {[%clk 0:03:09.1]} 9... Be6 {[%clk 0:03:05.2]}
10. Bf3 {[%clk 0:02:59.1]} 10... Nbd7 {[%clk 0:02:40.1]} 11. h4 {[%clk
0:02:52.9]} 11... Rc8 {[%clk 0:02:36.1]} 12. Qe2 {[%clk 0:02:35.6]} 12... Nb6
{[%clk 0:02:30.3]} 13. Bxb6 {[%clk 0:02:30.6]} 13... Qxb6 {[%clk 0:02:30.2]} 14.
g5 {[%clk 0:02:24.1]} 14... hxg5 {[%clk 0:02:27.5]} 15. hxg5 {[%clk 0:02:26]}
15... Rxh1+ {[%clk 0:02:27.5]} 16. Bxh1 {[%clk 0:02:27.9]} 16... Ng4 {[%clk
0:02:27.1]} 17. Bf3 {[%clk 0:02:21.5]} 17... Bc4 {[%clk 0:02:07.2]} 18. Bxg4
{[%clk 0:01:30.3]} 18... Bxe2 {[%clk 0:01:58.3]} 19. Bxc8 {[%clk 0:01:29.9]}
19... Bf3 {[%clk 0:01:56.1]} 20. Bh3 {[%clk 0:00:32]} 20... Bxg5 {[%clk
0:01:55.3]} 0-1

[Event "*** Titled Tuesday 3|2 Blitz"]
[Site "Chess.com"]
[Date "2016.07.05"]
[Round "5"]
[White "popov_m"]
[Black "rithwik2002"]
[Result "0-1"]
[WhiteElo "2191"]
[BlackElo "1999"]
[TimeControl "180+2"]
[EndTime "17:59:47 PDT"]
[Termination "rithwik2002 won by resignation"]

1. c4 {[%clk 0:03:01.9]} 1... e5 {[%clk 0:02:57.5]} 2. g3 {[%clk 0:03:02.8]}
2... Nc6 {[%clk 0:02:57]} 3. Bg2 {[%clk 0:03:04.1]} 3... f5 {[%clk 0:02:55.3]}
4. Nc3 {[%clk 0:03:03.6]} 4... Nf6 {[%clk 0:02:47.7]} 5. d3 {[%clk 0:03:00.8]}
5... Bb4 {[%clk 0:02:46.5]} 6. Bd2 {[%clk 0:02:56.9]} 6... O-O {[%clk
0:02:45.8]} 7. a3 {[%clk 0:02:53.4]} 7... Bxc3 {[%clk 0:02:45.1]} 8. Bxc3 {[%clk
0:02:55.3]} 8... d6 {[%clk 0:02:45.3]} 9. Nf3 {[%clk 0:02:52.7]} 9... Qe8 {[%clk
0:02:42.5]} 10. d4 {[%clk 0:02:26.8]} 10... e4 {[%clk 0:02:33.8]} 11. Ng5 {[%clk
0:02:27.2]} 11... h6 {[%clk 0:02:32.7]} 12. Nh3 {[%clk 0:02:27.6]} 12... g5
{[%clk 0:02:29.6]} 13. e3 {[%clk 0:02:27.7]} 13... Rb8 {[%clk 0:02:26.7]} 14.
Bf1 {[%clk 0:02:06.5]} 14... b6 {[%clk 0:02:22.9]} 15. Qb3 {[%clk 0:02:02.7]}
15... Bd7 {[%clk 0:02:18.7]} 16. Ng1 {[%clk 0:01:51.4]} 16... Na5 {[%clk
0:02:15.8]} 17. Qc2 {[%clk 0:01:44]} 17... f4 {[%clk 0:02:14.6]} 18. b4 {[%clk
0:01:36.8]} 18... fxe3 {[%clk 0:02:13]} 19. fxe3 {[%clk 0:01:36.6]} 19... Ng4
{[%clk 0:02:12.2]} 20. bxa5 {[%clk 0:01:06]} 20... Rxf1+ {[%clk 0:02:09.7]} 21.
Kd2 {[%clk 0:01:03.2]} 21... Rf2+ {[%clk 0:02:04]} 22. Ne2 {[%clk 0:01:01.2]}
22... Ba4 {[%clk 0:02:05]} 23. Qa2 {[%clk 0:00:55.7]} 23... Qf7 {[%clk
0:02:02.1]} 24. h4 {[%clk 0:00:23.8]} 24... Nxe3 {[%clk 0:01:59.4]} 25. Kxe3
{[%clk 0:00:21.3]} 25... Qf3+ {[%clk 0:01:46.5]} 0-1

[Event "*** Titled Tuesday 3|2 Blitz"]
[Site "Chess.com"]
[Date "2016.07.05"]
[Round "5"]
[White "simplerXiao"]
[Black "FearlessKing64"]
[Result "1-0"]
[WhiteElo "2293"]
[BlackElo "2106"]
[TimeControl "180+2"]
[EndTime "18:01:02 PDT"]
[Termination "simplerXiao won by checkmate"]

1. e4 {[%clk 0:03:01.9]} 1... c5 {[%clk 0:03:00.4]} 2. Nf3 {[%clk 0:03:02.6]}
2... d6 {[%clk 0:03:01.7]} 3. d4 {[%clk 0:03:04.1]} 3... cxd4 {[%clk 0:03:03]}
4. Nxd4 {[%clk 0:03:06]} 4... Nf6 {[%clk 0:03:04.1]} 5. Nc3 {[%clk 0:03:07.6]}
5... a6 {[%clk 0:03:05.5]} 6. Bc4 {[%clk 0:03:07.9]} 6... e6 {[%clk 0:03:06.2]}
7. Bb3 {[%clk 0:03:08.7]} 7... Nbd7 {[%clk 0:03:06.9]} 8. Be3 {[%clk 0:03:10.1]}
8... Nc5 {[%clk 0:03:03.3]} 9. Qe2 {[%clk 0:03:05.4]} 9... Be7 {[%clk
0:02:58.1]} 10. O-O-O {[%clk 0:03:03.2]} 10... Qc7 {[%clk 0:02:49.7]} 11. Bg5
{[%clk 0:02:59.3]} 11... O-O {[%clk 0:02:41.8]} 12. f4 {[%clk 0:02:59]} 12... h6
{[%clk 0:02:28.9]} 13. Bh4 {[%clk 0:02:52.8]} 13... Nfxe4 {[%clk 0:02:13.5]} 14.
Nxe4 {[%clk 0:02:39.5]} 14... Nxb3+ {[%clk 0:02:11.2]} 15. axb3 {[%clk
0:02:38.1]} 15... Bxh4 {[%clk 0:02:11.4]} 16. g4 {[%clk 0:02:37]} 16... d5
{[%clk 0:01:52.4]} 17. Ng3 {[%clk 0:02:07.9]} 17... Qxf4+ {[%clk 0:01:51.3]} 18.
Kb1 {[%clk 0:02:09.8]} 18... Bf6 {[%clk 0:01:24.1]} 19. Rhf1 {[%clk 0:02:07.4]}
19... Qe5 {[%clk 0:01:20.9]} 20. Qf2 {[%clk 0:02:02.8]} 20... Bd7 {[%clk
0:01:10]} 21. Rfe1 {[%clk 0:02:01.9]} 21... Qc7 {[%clk 0:01:06]} 22. Nh5 {[%clk
0:02:02.7]} 22... Be5 {[%clk 0:00:55.5]} 23. Nf3 {[%clk 0:01:58.2]} 23... Bd6
{[%clk 0:00:40.7]} 24. g5 {[%clk 0:01:53.6]} 24... hxg5 {[%clk 0:00:33.9]} 25.
Nxg5 {[%clk 0:01:53.6]} 25... Rac8 {[%clk 0:00:28.7]} 26. Rg1 {[%clk 0:01:47.5]}
26... Bc5 {[%clk 0:00:17.8]} 27. Qh4 {[%clk 0:00:53.6]} 27... Bxg1 {[%clk
0:00:11.2]} 28. Nf6+ {[%clk 0:00:52.9]} 28... gxf6 {[%clk 0:00:06.7]} 29. Qh7#
{[%clk 0:00:54.8]} 1-0